[Event "*** Titled Tuesday Blitz"]
[Site "Chess.com"]
[Date "2021.02.02"]
[Round "7"]
[White "ketster"]
[Black "AliKa2810"]
[Result "1/2-1/2"]
[WhiteElo "2391"]
[BlackElo "2564"]
[TimeControl "180+1"]
[EndTime "11:20:49 PST"]
[Termination "Game drawn - insufficient material"]

1. d4 {[%clk 0:03:00.2]} 1... d5 {[%clk 0:02:58.8]} 2. c4 {[%clk 0:02:58.2]}
2... c6 {[%clk 0:02:59.4]} 3. cxd5 {[%clk 0:02:53.2]} 3... cxd5 {[%clk
0:03:00.3]} 4. Bf4 {[%clk 0:02:52.7]} 4... Nc6 {[%clk 0:02:59.4]} 5. e3 {[%clk
0:02:52.3]} 5... Nf6 {[%clk 0:02:58.2]} 6. Nc3 {[%clk 0:02:52.5]} 6... e6 {[%clk
0:02:50.5]} 7. Bd3 {[%clk 0:02:49.2]} 7... Bd6 {[%clk 0:02:45.1]} 8. Bxd6 {[%clk
0:02:48.4]} 8... Qxd6 {[%clk 0:02:46]} 9. f4 {[%clk 0:02:48.9]} 9... O-O {[%clk
0:02:45.4]} 10. Nf3 {[%clk 0:02:45.7]} 10... Bd7 {[%clk 0:02:46]} 11. O-O {[%clk
0:02:45.3]} 11... Rfc8 {[%clk 0:02:38.8]} 12. Rc1 {[%clk 0:02:41.3]} 12... a6
{[%clk 0:02:31.5]} 13. Ne5 {[%clk 0:02:34.7]} 13... Ne7 {[%clk 0:02:21.8]} 14.
Qf3 {[%clk 0:02:25.6]} 14... b5 {[%clk 0:02:17.3]} 15. a3 {[%clk 0:02:12.6]}
15... Be8 {[%clk 0:02:06.1]} 16. g4 {[%clk 0:02:11.1]} 16... Nd7 {[%clk
0:02:02]} 17. Qh3 {[%clk 0:02:04.4]} 17... Nf8 {[%clk 0:02:01]} 18. f5 {[%clk
0:02:00.1]} 18... f6 {[%clk 0:01:59.4]} 19. fxe6 {[%clk 0:01:50]} 19... Qxe6
{[%clk 0:01:45.2]} 20. Bf5 {[%clk 0:01:14.5]} 20... Nxf5 {[%clk 0:01:44.6]} 21.
gxf5 {[%clk 0:01:15.4]} 21... Qe7 {[%clk 0:01:43.9]} 22. Ng4 {[%clk 0:01:08]}
22... Bf7 {[%clk 0:01:39.1]} 23. Qg2 {[%clk 0:01:04.3]} 23... Kh8 {[%clk
0:01:31.4]} 24. Nxd5 {[%clk 0:01:02.2]} 24... Bxd5 {[%clk 0:01:29.8]} 25. Qxd5
{[%clk 0:01:01.6]} 25... h5 {[%clk 0:01:28.5]} 26. Nf2 {[%clk 0:00:47.3]} 26...
Qxe3 {[%clk 0:01:26.4]} 27. Rce1 {[%clk 0:00:45]} 27... Qg5+ {[%clk 0:01:25.9]}
28. Kh1 {[%clk 0:00:41.1]} 28... Rd8 {[%clk 0:01:26]} 29. Qe4 {[%clk 0:00:39]}
29... Rac8 {[%clk 0:01:21.4]} 30. Nh3 {[%clk 0:00:38.9]} 30... Qd2 {[%clk
0:01:10.5]} 31. Qf3 {[%clk 0:00:27.5]} 31... Rxd4 {[%clk 0:01:04.9]} 32. Qxh5+
{[%clk 0:00:27]} 32... Kg8 {[%clk 0:01:04.3]} 33. Re7 {[%clk 0:00:25.5]} 33...
Qh6 {[%clk 0:00:50.8]} 34. Qxh6 {[%clk 0:00:25.4]} 34... gxh6 {[%clk 0:00:51.7]}
35. Nf4 {[%clk 0:00:23.4]} 35... Nh7 {[%clk 0:00:20.8]} 36. Ne6 {[%clk
0:00:13.9]} 36... Rh4 {[%clk 0:00:18.9]} 37. Rg1+ {[%clk 0:00:13.9]} 37... Ng5
{[%clk 0:00:18.7]} 38. Rg7+ {[%clk 0:00:10.8]} 38... Kh8 {[%clk 0:00:19.1]} 39.
Rg6 {[%clk 0:00:09.9]} 39... Rc2 {[%clk 0:00:18.2]} 40. Rg2 {[%clk 0:00:06.6]}
40... Rc1+ {[%clk 0:00:15.8]} 41. Rg1 {[%clk 0:00:06.9]} 41... Rc2 {[%clk
0:00:09.6]} 42. Rg2 {[%clk 0:00:06.6]} 42... Rc1+ {[%clk 0:00:09.9]} 43. Rg1
{[%clk 0:00:06.9]} 43... Rxg1+ {[%clk 0:00:09.8]} 44. Kxg1 {[%clk 0:00:06.8]}
44... Rg4+ {[%clk 0:00:10.4]} 45. Kf1 {[%clk 0:00:05.7]} 45... Rh4 {[%clk
0:00:09.8]} 46. Rxf6 {[%clk 0:00:04.9]} 46... Rxh2 {[%clk 0:00:10.4]} 47. Nxg5
{[%clk 0:00:04.4]} 47... hxg5 {[%clk 0:00:10]} 48. Rxa6 {[%clk 0:00:04.3]} 48...
Rxb2 {[%clk 0:00:10.2]} 49. Rb6 {[%clk 0:00:04.7]} 49... Rb3 {[%clk 0:00:09]}
50. a4 {[%clk 0:00:04.9]} 50... bxa4 {[%clk 0:00:08.8]} 51. Ra6 {[%clk
0:00:05.4]} 51... a3 {[%clk 0:00:08.8]} 52. f6 {[%clk 0:00:04.2]} 52... Kg8
{[%clk 0:00:08.9]} 53. Ra7 {[%clk 0:00:04]} 53... Kf8 {[%clk 0:00:08.4]} 54. Kg2
{[%clk 0:00:04.3]} 54... g4 {[%clk 0:00:08.6]} 55. Kf2 {[%clk 0:00:03.8]} 55...
Ke8 {[%clk 0:00:08.7]} 56. Kg2 {[%clk 0:00:03.2]} 56... Kf8 {[%clk 0:00:08.2]}
57. Kf2 {[%clk 0:00:03]} 57... Rf3+ {[%clk 0:00:08.2]} 58. Kg2 {[%clk
0:00:03.2]} 58... Kg8 {[%clk 0:00:08.2]} 59. Kh2 {[%clk 0:00:02.5]} 59... Kf8
{[%clk 0:00:05.5]} 60. Kg2 {[%clk 0:00:02.9]} 60... Ke8 {[%clk 0:00:06]} 61. Kh2
{[%clk 0:00:03.1]} 61... Rxf6 {[%clk 0:00:05.7]} 62. Rxa3 {[%clk 0:00:02]} 62...
Kf7 {[%clk 0:00:06.1]} 63. Kg3 {[%clk 0:00:02.3]} 63... Kg6 {[%clk 0:00:06]} 64.
Ra7 {[%clk 0:00:02.8]} 64... Kf5 {[%clk 0:00:05.3]} 65. Ra5+ {[%clk 0:00:03.2]}
65... Ke4 {[%clk 0:00:05.6]} 66. Kxg4 {[%clk 0:00:03.6]} 66... Rg6+ {[%clk
0:00:06]} 67. Kh5 {[%clk 0:00:04.2]} 67... Rg1 {[%clk 0:00:06]} 68. Rg5 {[%clk
0:00:04.7]} 68... Rxg5+ {[%clk 0:00:03.9]} 69. Kxg5 {[%clk 0:00:05.6]} 1/2-1/2

[Event "*** Titled Tuesday Blitz"]
[Site "Chess.com"]
[Date "2021.02.02"]
[Round "7"]
[White "frederiksvane"]
[Black "MITerryble"]
[Result "0-1"]
[WhiteElo "2757"]
[BlackElo "2928"]
[TimeControl "180+1"]
[EndTime "11:20:50 PST"]
[Termination "MITerryble won by resignation"]

1. e4 {[%clk 0:03:00.9]} 1... e6 {[%clk 0:02:59.7]} 2. d4 {[%clk 0:02:54.4]}
2... d5 {[%clk 0:02:59.9]} 3. Nd2 {[%clk 0:02:54.7]} 3... Be7 {[%clk 0:03:00]}
4. Ngf3 {[%clk 0:02:51.6]} 4... Nf6 {[%clk 0:02:59.4]} 5. Bd3 {[%clk 0:02:52]}
5... c5 {[%clk 0:02:59.1]} 6. c3 {[%clk 0:02:49.4]} 6... Nc6 {[%clk 0:02:55.6]}
7. O-O {[%clk 0:02:41.4]} 7... cxd4 {[%clk 0:02:54.4]} 8. cxd4 {[%clk 0:02:41]}
8... dxe4 {[%clk 0:02:54.2]} 9. Nxe4 {[%clk 0:02:41.9]} 9... O-O {[%clk
0:02:54.3]} 10. Be3 {[%clk 0:02:37.5]} 10... Nb4 {[%clk 0:02:52.1]} 11. Nxf6+
{[%clk 0:02:33.9]} 11... Bxf6 {[%clk 0:02:53]} 12. Be4 {[%clk 0:02:33.9]} 12...
Nd5 {[%clk 0:02:52.6]} 13. Qb3 {[%clk 0:02:30.1]} 13... b6 {[%clk 0:02:51.6]}
14. Bxd5 {[%clk 0:02:29.6]} 14... exd5 {[%clk 0:02:50.9]} 15. h3 {[%clk
0:02:10.9]} 15... Re8 {[%clk 0:02:47.9]} 16. Rac1 {[%clk 0:02:10.1]} 16... Bb7
{[%clk 0:02:38.4]} 17. Bf4 {[%clk 0:02:02.6]} 17... Rc8 {[%clk 0:02:33.2]} 18.
Be5 {[%clk 0:01:51]} 18... Be7 {[%clk 0:01:49.2]} 19. Qa4 {[%clk 0:01:40.4]}
19... a6 {[%clk 0:01:41.3]} 20. Qb3 {[%clk 0:01:38.5]} 20... b5 {[%clk
0:01:38.8]} 21. Rxc8 {[%clk 0:01:19.6]} 21... Qxc8 {[%clk 0:01:39.7]} 22. Ne1
{[%clk 0:01:02.9]} 22... f6 {[%clk 0:01:34]} 23. Bf4 {[%clk 0:00:50.8]} 23...
Qc4 {[%clk 0:01:33.9]} 24. Be3 {[%clk 0:00:41.4]} 24... Bc8 {[%clk 0:01:23.9]}
25. Nd3 {[%clk 0:00:38.7]} 25... Bf5 {[%clk 0:01:23]} 26. Nf4 {[%clk 0:00:38.8]}
26... Rd8 {[%clk 0:01:11]} 27. Rc1 {[%clk 0:00:37.4]} 27... Qxb3 {[%clk
0:01:11.2]} 28. axb3 {[%clk 0:00:37.8]} 28... g5 {[%clk 0:01:12.1]} 29. Ne2
{[%clk 0:00:34.1]} 29... Rc8 {[%clk 0:01:10.2]} 30. Nc3 {[%clk 0:00:23]} 30...
Be6 {[%clk 0:01:08.5]} 31. Kf1 {[%clk 0:00:10.3]} 31... Kf7 {[%clk 0:00:49.4]}
32. Ke2 {[%clk 0:00:10]} 32... h5 {[%clk 0:00:49.9]} 33. f3 {[%clk 0:00:09.5]}
33... Rg8 {[%clk 0:00:46.2]} 34. g4 {[%clk 0:00:09.1]} 34... Rh8 {[%clk
0:00:45.8]} 35. Bf2 {[%clk 0:00:07.2]} 35... hxg4 {[%clk 0:00:44]} 36. hxg4
{[%clk 0:00:08.1]} 36... Rh2 {[%clk 0:00:44.4]} 37. Nd1 {[%clk 0:00:08.3]} 37...
Bd6 {[%clk 0:00:44]} 38. Ne3 {[%clk 0:00:06.1]} 38... Bg3 {[%clk 0:00:42.4]} 39.
Rf1 {[%clk 0:00:06.2]} 39... Bd6 {[%clk 0:00:37.7]} 40. Rg1 {[%clk 0:00:04.4]}
40... Rh8 {[%clk 0:00:34.3]} 41. Bg3 {[%clk 0:00:03.7]} 41... Be7 {[%clk
0:00:32.2]} 42. Rc1 {[%clk 0:00:03.7]} 42... Ra8 {[%clk 0:00:27.6]} 43. Rc7
{[%clk 0:00:03.3]} 43... Ke8 {[%clk 0:00:27.8]} 44. Rc6 {[%clk 0:00:03.3]} 44...
Kd7 {[%clk 0:00:27.9]} 45. Rc7+ {[%clk 0:00:03.7]} 45... Kd8 {[%clk 0:00:28.3]}
46. Rb7 {[%clk 0:00:04.1]} 46... Ke8 {[%clk 0:00:22.1]} 47. f4 {[%clk
0:00:04.3]} 47... gxf4 {[%clk 0:00:21]} 48. Bxf4 {[%clk 0:00:05.2]} 48... b4
{[%clk 0:00:21.9]} 49. Kf3 {[%clk 0:00:04.5]} 49... a5 {[%clk 0:00:21.8]} 50.
Rc7 {[%clk 0:00:04.6]} 50... a4 {[%clk 0:00:21.2]} 51. bxa4 {[%clk 0:00:04.3]}
51... Rxa4 {[%clk 0:00:22.1]} 52. Rb7 {[%clk 0:00:04.3]} 52... Ra2 {[%clk
0:00:21.6]} 53. Nd1 {[%clk 0:00:03.9]} 53... Ra1 {[%clk 0:00:21.4]} 54. Nf2
{[%clk 0:00:04.3]} 54... Rf1 {[%clk 0:00:19]} 55. Be3 {[%clk 0:00:02.2]} 55...
Rg1 {[%clk 0:00:17]} 56. Ke2 {[%clk 0:00:01.7]} 56... Rg2 {[%clk 0:00:16]} 57.
Kf3 {[%clk 0:00:02]} 57... Rg1 {[%clk 0:00:16.2]} 58. Ke2 {[%clk 0:00:01.7]}
58... Bxg4+ {[%clk 0:00:16.2]} 59. Nxg4 {[%clk 0:00:02.6]} 59... Rxg4 {[%clk
0:00:16.9]} 60. Kf3 {[%clk 0:00:03.5]} 60... Rh4 {[%clk 0:00:16.3]} 61. Rb5
{[%clk 0:00:04]} 61... Rh5 {[%clk 0:00:16.6]} 62. Kg4 {[%clk 0:00:02.8]} 62...
Rh2 {[%clk 0:00:13.5]} 63. Kf5 {[%clk 0:00:02.6]} 63... Rxb2 {[%clk 0:00:12.8]}
64. Bf4 {[%clk 0:00:03.2]} 64... Rf2 {[%clk 0:00:11.5]} 65. Rxd5 {[%clk
0:00:03.2]} 65... b3 {[%clk 0:00:11.2]} 66. Rb5 {[%clk 0:00:03.8]} 66... b2
{[%clk 0:00:11.3]} 67. Ke4 {[%clk 0:00:03.9]} 67... Ba3 {[%clk 0:00:10.8]} 68.
Be3 {[%clk 0:00:03.2]} 68... Rf1 {[%clk 0:00:11]} 69. Rb8+ {[%clk 0:00:01.4]}
69... Kd7 {[%clk 0:00:10.8]} 70. Rb7+ {[%clk 0:00:02.3]} 70... Kc8 {[%clk
0:00:11]} 71. Rb3 {[%clk 0:00:03.2]} 71... b1=Q+ {[%clk 0:00:11.1]} 72. Rxb1
{[%clk 0:00:04.1]} 72... Rxb1 {[%clk 0:00:11.9]} 0-1

[Event "*** Titled Tuesday Blitz"]
[Site "Chess.com"]
[Date "2021.02.02"]
[Round "7"]
[White "EugeneRougon"]
[Black "mjray79"]
[Result "0-1"]
[WhiteElo "2713"]
[BlackElo "2521"]
[TimeControl "180+1"]
[EndTime "11:20:50 PST"]
[Termination "mjray79 won on time"]

1. e4 {[%clk 0:03:00.9]} 1... d5 {[%clk 0:03:00]} 2. exd5 {[%clk 0:02:59.4]}
2... Qxd5 {[%clk 0:03:00.9]} 3. Nc3 {[%clk 0:02:59.6]} 3... Qa5 {[%clk
0:03:00.5]} 4. d4 {[%clk 0:03:00.1]} 4... Nf6 {[%clk 0:02:59.6]} 5. Nf3 {[%clk
0:03:00.6]} 5... Bf5 {[%clk 0:02:59.6]} 6. Bd2 {[%clk 0:02:57.7]} 6... c6 {[%clk
0:02:59]} 7. Bc4 {[%clk 0:02:56.7]} 7... e6 {[%clk 0:02:59.2]} 8. Nd5 {[%clk
0:02:55.8]} 8... Qd8 {[%clk 0:02:59.2]} 9. Nxf6+ {[%clk 0:02:55.5]} 9... Qxf6
{[%clk 0:03:00.1]} 10. Qe2 {[%clk 0:02:55.5]} 10... Bg4 {[%clk 0:03:00]} 11.
O-O-O {[%clk 0:02:43.6]} 11... Nd7 {[%clk 0:02:59.2]} 12. Bc3 {[%clk 0:02:36.5]}
12... Bxf3 {[%clk 0:02:39.9]} 13. gxf3 {[%clk 0:02:37.4]} 13... Qf4+ {[%clk
0:02:30.5]} 14. Kb1 {[%clk 0:02:36.7]} 14... O-O-O {[%clk 0:02:28.4]} 15. Qe4
{[%clk 0:02:19.3]} 15... Qc7 {[%clk 0:02:27.9]} 16. h4 {[%clk 0:02:09.4]} 16...
h5 {[%clk 0:02:23]} 17. Rhg1 {[%clk 0:02:05.2]} 17... Nf6 {[%clk 0:02:17.8]} 18.
Qe2 {[%clk 0:01:56.1]} 18... Qf4 {[%clk 0:02:12.4]} 19. Rh1 {[%clk 0:01:49.1]}
19... Be7 {[%clk 0:02:06.1]} 20. Qe3 {[%clk 0:01:39.2]} 20... Qc7 {[%clk
0:02:01.2]} 21. Bd2 {[%clk 0:01:28.8]} 21... Nd5 {[%clk 0:01:58]} 22. Qe4 {[%clk
0:01:19.9]} 22... Bf6 {[%clk 0:01:54.7]} 23. c3 {[%clk 0:01:15.6]} 23... Rhe8
{[%clk 0:01:45.9]} 24. Rhg1 {[%clk 0:01:03.4]} 24... g6 {[%clk 0:01:39.6]} 25.
Bb3 {[%clk 0:01:02.7]} 25... e5 {[%clk 0:01:37.8]} 26. dxe5 {[%clk 0:00:57.4]}
26... Rxe5 {[%clk 0:01:32.2]} 27. Qc4 {[%clk 0:00:55.7]} 27... Re7 {[%clk
0:01:10.2]} 28. Rde1 {[%clk 0:00:43.3]} 28... Red7 {[%clk 0:01:07.7]} 29. Bc1
{[%clk 0:00:41.7]} 29... Nb6 {[%clk 0:00:55.2]} 30. Qf1 {[%clk 0:00:33.2]} 30...
Bxh4 {[%clk 0:00:50.8]} 31. Bxf7 {[%clk 0:00:29.9]} 31... Rxf7 {[%clk
0:00:44.9]} 32. Qh3+ {[%clk 0:00:30.1]} 32... Qd7 {[%clk 0:00:45.2]} 33. Qxh4
{[%clk 0:00:31]} 33... Rxf3 {[%clk 0:00:42.8]} 34. Qe4 {[%clk 0:00:18.7]} 34...
Rxf2 {[%clk 0:00:38.9]} 35. Qxg6 {[%clk 0:00:17.2]} 35... Nc4 {[%clk 0:00:32.4]}
36. Ka1 {[%clk 0:00:13]} 36... h4 {[%clk 0:00:24.2]} 37. Qe4 {[%clk 0:00:12.8]}
37... Nd2 {[%clk 0:00:19.4]} 38. Qxh4 {[%clk 0:00:12.8]} 38... Rdf8 {[%clk
0:00:15.5]} 39. Rd1 {[%clk 0:00:12.4]} 39... Qd5 {[%clk 0:00:09.1]} 40. Qh6
{[%clk 0:00:10.6]} 40... Rd8 {[%clk 0:00:07.3]} 41. Rg5 {[%clk 0:00:09]} 41...
Nb3+ {[%clk 0:00:06]} 42. axb3 {[%clk 0:00:09.1]} 42... Qxd1 {[%clk 0:00:06.9]}
43. Rg7 {[%clk 0:00:07.9]} 43... Rd7 {[%clk 0:00:03.1]} 44. Rg8+ {[%clk
0:00:07]} 44... Kc7 {[%clk 0:00:02.9]} 45. Ka2 {[%clk 0:00:07.2]} 45... Rf5
{[%clk 0:00:01.6]} 46. Bf4+ {[%clk 0:00:07.1]} 46... Kb6 {[%clk 0:00:02.1]} 47.
Be3+ {[%clk 0:00:06.3]} 47... Ka6 {[%clk 0:00:02.5]} 48. b4 {[%clk 0:00:01.8]}
48... Qa4+ {[%clk 0:00:02.1]} 49. Kb1 {[%clk 0:00:02.7]} 49... Rd1+ {[%clk
0:00:02.5]} 50. Bc1 {[%clk 0:00:03.4]} 50... Rff1 {[%clk 0:00:02]} 51. Rf8
{[%clk 0:00:01.5]} 51... Rxc1+ {[%clk 0:00:02.4]} 52. Qxc1 {[%clk 0:00:02.4]}
52... Rxc1+ {[%clk 0:00:03]} 53. Kxc1 {[%clk 0:00:03.3]} 53... Qa1+ {[%clk
0:00:03.9]} 54. Kc2 {[%clk 0:00:03.7]} 54... Qa2 {[%clk 0:00:04.8]} 55. Rd8
{[%clk 0:00:03.2]} 55... Qc4 {[%clk 0:00:04.8]} 56. Rd4 {[%clk 0:00:02.9]} 56...
Qe2+ {[%clk 0:00:04.7]} 57. Kb3 {[%clk 0:00:03.2]} 57... Qe6+ {[%clk 0:00:05.6]}
58. Kc2 {[%clk 0:00:03.5]} 58... Kb6 {[%clk 0:00:06.2]} 59. Rd2 {[%clk 0:00:04]}
59... Kc7 {[%clk 0:00:06.3]} 60. Rd4 {[%clk 0:00:04.4]} 60... b5 {[%clk
0:00:06.7]} 61. Rd2 {[%clk 0:00:04.5]} 61... Kb6 {[%clk 0:00:07.2]} 62. Rd4
{[%clk 0:00:04.9]} 62... a5 {[%clk 0:00:07.6]} 63. bxa5+ {[%clk 0:00:05.1]}
63... Kxa5 {[%clk 0:00:08.5]} 64. Rd2 {[%clk 0:00:04.9]} 64... Qf5+ {[%clk
0:00:08.8]} 65. Kb3 {[%clk 0:00:04.5]} 65... c5 {[%clk 0:00:09]} 66. Ka2 {[%clk
0:00:04.2]} 66... Qe6+ {[%clk 0:00:08.4]} 67. b3 {[%clk 0:00:03.3]} 67... Qe1
{[%clk 0:00:08.4]} 68. Rc2 {[%clk 0:00:03.2]} 68... Qd1 {[%clk 0:00:08.3]} 69.
Kb2 {[%clk 0:00:03.7]} 69... c4 {[%clk 0:00:06]} 70. b4+ {[%clk 0:00:02.1]}
70... Ka4 {[%clk 0:00:05.7]} 0-1

[Event "*** Titled Tuesday Blitz"]
[Site "Chess.com"]
[Date "2021.02.02"]
[Round "7"]
[White "Kapitan_Bayan"]
[Black "Aygehovit1992"]
[Result "0-1"]
[WhiteElo "2436"]
[BlackElo "2614"]
[TimeControl "180+1"]
[EndTime "11:20:51 PST"]
[Termination "Aygehovit1992 won by checkmate"]

1. d4 {[%clk 0:03:00.9]} 1... Nf6 {[%clk 0:02:50.8]} 2. Nf3 {[%clk 0:03:00.2]}
2... g6 {[%clk 0:02:50.2]} 3. c4 {[%clk 0:03:00.4]} 3... Bg7 {[%clk 0:02:49]} 4.
Nc3 {[%clk 0:03:00.8]} 4... d5 {[%clk 0:02:49.5]} 5. cxd5 {[%clk 0:03:00.8]}
5... Nxd5 {[%clk 0:02:50.4]} 6. e4 {[%clk 0:03:01.5]} 6... Nxc3 {[%clk
0:02:50.8]} 7. bxc3 {[%clk 0:03:02.4]} 7... c5 {[%clk 0:02:51.3]} 8. Rb1 {[%clk
0:03:02.5]} 8... O-O {[%clk 0:02:47.2]} 9. Be2 {[%clk 0:03:02.9]} 9... b6 {[%clk
0:02:47.2]} 10. O-O {[%clk 0:03:01.3]} 10... Qc7 {[%clk 0:02:44.3]} 11. Qb3
{[%clk 0:02:40.1]} 11... Nc6 {[%clk 0:02:19.6]} 12. Be3 {[%clk 0:02:29.8]} 12...
Bg4 {[%clk 0:02:09]} 13. d5 {[%clk 0:02:29.2]} 13... Ne5 {[%clk 0:02:04.5]} 14.
c4 {[%clk 0:02:06.1]} 14... Nxf3+ {[%clk 0:02:02.4]} 15. Bxf3 {[%clk 0:02:05.1]}
15... Bxf3 {[%clk 0:02:02.2]} 16. gxf3 {[%clk 0:02:06]} 16... f5 {[%clk
0:01:59.2]} 17. Qc2 {[%clk 0:02:05.2]} 17... Be5 {[%clk 0:01:44.1]} 18. h3
{[%clk 0:01:53]} 18... fxe4 {[%clk 0:01:35.6]} 19. Qxe4 {[%clk 0:01:43]} 19...
Rae8 {[%clk 0:01:30.8]} 20. Rbd1 {[%clk 0:01:41.3]} 20... Rf5 {[%clk 0:01:30.4]}
21. Rfe1 {[%clk 0:01:35.3]} 21... Ref8 {[%clk 0:01:29.5]} 22. Bh6 {[%clk
0:01:29.9]} 22... R8f7 {[%clk 0:01:22.9]} 23. d6 {[%clk 0:01:24.8]} 23... exd6
{[%clk 0:00:59.3]} 24. Qa8+ {[%clk 0:01:24.9]} 24... Rf8 {[%clk 0:00:59.3]} 25.
Bxf8 {[%clk 0:01:25.1]} 25... Rxf8 {[%clk 0:01:00.2]} 26. Qd5+ {[%clk
0:01:24.8]} 26... Kg7 {[%clk 0:01:00.5]} 27. Re4 {[%clk 0:00:58.9]} 27... h5
{[%clk 0:01:00.1]} 28. Kg2 {[%clk 0:00:52.3]} 28... Qe7 {[%clk 0:00:56.7]} 29.
h4 {[%clk 0:00:40.7]} 29... Qf6 {[%clk 0:00:50.4]} 30. Qd3 {[%clk 0:00:41]}
30... Bf4 {[%clk 0:00:46.6]} 31. Rh1 {[%clk 0:00:30.8]} 31... a6 {[%clk
0:00:46]} 32. a4 {[%clk 0:00:29.7]} 32... Rf7 {[%clk 0:00:35.4]} 33. Qd5 {[%clk
0:00:28.7]} 33... Be5 {[%clk 0:00:34.3]} 34. Qd3 {[%clk 0:00:29.1]} 34... Qf5
{[%clk 0:00:33.5]} 35. Rh3 {[%clk 0:00:22.8]} 35... Qd7 {[%clk 0:00:30.8]} 36.
Qb3 {[%clk 0:00:22.6]} 36... Qd8 {[%clk 0:00:24]} 37. Rh1 {[%clk 0:00:21.7]}
37... Bd4 {[%clk 0:00:22.4]} 38. Rb1 {[%clk 0:00:21]} 38... Qf6 {[%clk 0:00:16]}
39. Rd1 {[%clk 0:00:16.7]} 39... Qf5 {[%clk 0:00:12.5]} 40. Rd3 {[%clk
0:00:15.3]} 40... g5 {[%clk 0:00:07.1]} 41. hxg5 {[%clk 0:00:15.5]} 41... Qxg5+
{[%clk 0:00:07.4]} 42. Kf1 {[%clk 0:00:16.1]} 42... Kh6 {[%clk 0:00:04.4]} 43.
Qxb6 {[%clk 0:00:14.5]} 43... Qc1+ {[%clk 0:00:03.3]} 44. Ke2 {[%clk 0:00:13.9]}
44... Qc2+ {[%clk 0:00:03.7]} 45. Rd2 {[%clk 0:00:13.6]} 45... Qxc4+ {[%clk
0:00:04]} 46. Ke1 {[%clk 0:00:10.6]} 46... Rf6 {[%clk 0:00:02.7]} 47. Qd8 {[%clk
0:00:09.8]} 47... Qc1+ {[%clk 0:00:02.8]} 48. Ke2 {[%clk 0:00:09.9]} 48... Qc4+
{[%clk 0:00:03]} 49. Ke1 {[%clk 0:00:10.2]} 49... Qf7 {[%clk 0:00:03.8]} 50. Re8
{[%clk 0:00:08.7]} 50... Rxf3 {[%clk 0:00:03.5]} 51. Qe7 {[%clk 0:00:06.6]}
51... Qxe7+ {[%clk 0:00:03.5]} 52. Rxe7 {[%clk 0:00:06.5]} 52... Rf6 {[%clk
0:00:04.4]} 53. Re4 {[%clk 0:00:06]} 53... Bc3 {[%clk 0:00:04.3]} 54. Ke2 {[%clk
0:00:05.9]} 54... Bxd2 {[%clk 0:00:04.8]} 55. Kxd2 {[%clk 0:00:06.8]} 55...
Rxf2+ {[%clk 0:00:05.3]} 56. Kc3 {[%clk 0:00:07.3]} 56... Rf6 {[%clk 0:00:05.9]}
57. Kc4 {[%clk 0:00:07.6]} 57... Kg5 {[%clk 0:00:05.8]} 58. Kd5 {[%clk
0:00:08.1]} 58... h4 {[%clk 0:00:06.2]} 59. Re1 {[%clk 0:00:08.1]} 59... h3
{[%clk 0:00:06.4]} 60. Rg1+ {[%clk 0:00:09]} 60... Kh4 {[%clk 0:00:06.7]} 61.
Rg8 {[%clk 0:00:09.3]} 61... Rh6 {[%clk 0:00:06.2]} 62. a5 {[%clk 0:00:10.2]}
62... h2 {[%clk 0:00:06.2]} 63. Kc6 {[%clk 0:00:09.2]} 63... h1=Q+ {[%clk
0:00:06.3]} 64. Kb6 {[%clk 0:00:10.1]} 64... c4 {[%clk 0:00:06.5]} 65. Ka7
{[%clk 0:00:11]} 65... c3 {[%clk 0:00:06.9]} 66. Rb8 {[%clk 0:00:11.2]} 66...
Rh7+ {[%clk 0:00:06.3]} 67. Kb6 {[%clk 0:00:10.7]} 67... Qb1+ {[%clk 0:00:05]}
68. Kxa6 {[%clk 0:00:10.2]} 68... Qd3+ {[%clk 0:00:05.2]} 69. Rb5 {[%clk
0:00:08]} 69... c2 {[%clk 0:00:06.1]} 70. Kb6 {[%clk 0:00:08]} 70... Qxb5+
{[%clk 0:00:06.3]} 71. Kxb5 {[%clk 0:00:08.2]} 71... c1=Q {[%clk 0:00:07.2]} 72.
Ka6 {[%clk 0:00:09]} 72... Rc7 {[%clk 0:00:06.8]} 73. Kb6 {[%clk 0:00:09.1]}
73... Qc5+ {[%clk 0:00:07.2]} 74. Ka6 {[%clk 0:00:09.1]} 74... Ra7# {[%clk
0:00:08.1]} 0-1